[Event "*** Titled Tuesday Blitz"]
[Site "Chess.com"]
[Date "2021.04.20"]
[Round "10"]
[White "MrChampion_Coach"]
[Black "prachiti01"]
[Result "0-1"]
[WhiteElo "2402"]
[BlackElo "2258"]
[TimeControl "180+1"]
[EndTime "11:55:41 PDT"]
[Termination "prachiti01 won on time"]

1. d4 {[%clk 0:03:00.9]} 1... Nf6 {[%clk 0:02:58.9]} 2. c4 {[%clk 0:03:00.8]}
2... g6 {[%clk 0:02:58.6]} 3. Nc3 {[%clk 0:03:00.9]} 3... Bg7 {[%clk 0:02:58.6]}
4. e4 {[%clk 0:03:00.9]} 4... d6 {[%clk 0:02:58.6]} 5. Be2 {[%clk 0:02:59.9]}
5... O-O {[%clk 0:02:58.4]} 6. Bg5 {[%clk 0:03:00.3]} 6... Nbd7 {[%clk
0:02:52.6]} 7. Qd2 {[%clk 0:02:42.6]} 7... c5 {[%clk 0:02:51.7]} 8. d5 {[%clk
0:02:39.8]} 8... a6 {[%clk 0:02:51.1]} 9. h4 {[%clk 0:02:34.4]} 9... Rb8 {[%clk
0:02:47]} 10. h5 {[%clk 0:02:27.1]} 10... b5 {[%clk 0:02:41.8]} 11. cxb5 {[%clk
0:02:20.4]} 11... axb5 {[%clk 0:02:41.5]} 12. Bxb5 {[%clk 0:02:11.5]} 12... Rxb5
{[%clk 0:02:09.8]} 13. Bxf6 {[%clk 0:02:07.6]} 13... Rxb2 {[%clk 0:02:02.2]} 14.
Qxb2 {[%clk 0:01:51.6]} 14... Nxf6 {[%clk 0:02:02]} 15. hxg6 {[%clk 0:01:40.6]}
15... Nxe4 {[%clk 0:01:39.1]} 16. gxh7+ {[%clk 0:01:29.2]} 16... Kh8 {[%clk
0:01:38.2]} 17. Nge2 {[%clk 0:01:26.5]} 17... Ba6 {[%clk 0:01:37.6]} 18. Rc1
{[%clk 0:01:12.5]} 18... Qa5 {[%clk 0:01:22.9]} 19. f3 {[%clk 0:01:06]} 19...
Bxe2 {[%clk 0:00:53]} 20. fxe4 {[%clk 0:01:03.6]} 20... Bg4 {[%clk 0:00:46.5]}
21. O-O {[%clk 0:00:51]} 21... Bd4+ {[%clk 0:00:37.9]} 22. Kh2 {[%clk
0:00:49.9]} 22... Kg7 {[%clk 0:00:30.1]} 23. Qd2 {[%clk 0:00:34]} 23... Be5+
{[%clk 0:00:25.1]} 24. g3 {[%clk 0:00:30.9]} 24... f6 {[%clk 0:00:20.3]} 25. Kg2
{[%clk 0:00:27.1]} 25... Qb4 {[%clk 0:00:19.9]} 26. Rh1 {[%clk 0:00:15.9]} 26...
Rh8 {[%clk 0:00:19.9]} 27. Qe3 {[%clk 0:00:10.7]} 27... Qb2+ {[%clk 0:00:15.1]}
28. Kg1 {[%clk 0:00:10.6]} 28... Kf7 {[%clk 0:00:12.1]} 29. Rh4 {[%clk
0:00:06.1]} 29... Bd4 {[%clk 0:00:12]} 30. Qxd4 {[%clk 0:00:03.3]} 30... cxd4
{[%clk 0:00:12]} 31. Ne2 {[%clk 0:00:04.2]} 31... Bxe2 {[%clk 0:00:11.3]} 32.
Re1 {[%clk 0:00:05.1]} 32... d3 {[%clk 0:00:11.1]} 33. Kf2 {[%clk 0:00:06]}
33... Qd4+ {[%clk 0:00:10.5]} 34. Kg2 {[%clk 0:00:05.5]} 34... d2 {[%clk
0:00:10.2]} 35. Rxe2 {[%clk 0:00:04.3]} 35... d1=Q {[%clk 0:00:10.5]} 36. Rf2
{[%clk 0:00:04.8]} 36... Qe1 {[%clk 0:00:09.6]} 37. Rhf4 {[%clk 0:00:04.8]}
37... Rxh7 {[%clk 0:00:08.7]} 38. Kf3 {[%clk 0:00:05.5]} 38... Rh1 {[%clk
0:00:08]} 39. Kg4 {[%clk 0:00:05.7]} 39... Qdd1+ {[%clk 0:00:08.1]} 40. R2f3
{[%clk 0:00:05.3]} 40... Rf1 {[%clk 0:00:07.6]} 41. a4 {[%clk 0:00:03.5]} 41...
Rxf3 {[%clk 0:00:07.7]} 0-1

[Event "*** Titled Tuesday Blitz"]
[Site "Chess.com"]
[Date "2021.04.20"]
[Round "10"]
[White "picturesquecheck"]
[Black "rynos0411"]
[Result "0-1"]
[WhiteElo "2308"]
[BlackElo "2445"]
[TimeControl "180+1"]
[EndTime "11:55:42 PDT"]
[Termination "rynos0411 won by resignation"]

1. e4 {[%clk 0:03:00.9]} 1... c6 {[%clk 0:02:57.4]} 2. d4 {[%clk 0:03:00.4]}
2... d5 {[%clk 0:02:57.8]} 3. Nd2 {[%clk 0:03:01.3]} 3... dxe4 {[%clk
0:02:57.6]} 4. Nxe4 {[%clk 0:03:02.2]} 4... g6 {[%clk 0:02:58.2]} 5. Nf3 {[%clk
0:03:01.7]} 5... Bg7 {[%clk 0:02:58.6]} 6. Bd3 {[%clk 0:03:02.3]} 6... Nf6
{[%clk 0:02:59]} 7. O-O {[%clk 0:03:02.1]} 7... O-O {[%clk 0:02:57.8]} 8. c3
{[%clk 0:03:01.4]} 8... Nbd7 {[%clk 0:02:56.7]} 9. Re1 {[%clk 0:03:01.6]} 9...
Re8 {[%clk 0:02:55.1]} 10. Bf4 {[%clk 0:03:01.6]} 10... Nxe4 {[%clk 0:02:50.6]}
11. Bxe4 {[%clk 0:03:00.6]} 11... Nf6 {[%clk 0:02:50.3]} 12. Bc2 {[%clk
0:03:00.1]} 12... Bg4 {[%clk 0:02:49.2]} 13. h3 {[%clk 0:02:59.6]} 13... Bxf3
{[%clk 0:02:45.8]} 14. Qxf3 {[%clk 0:03:00.5]} 14... Qd7 {[%clk 0:02:34.9]} 15.
Rad1 {[%clk 0:02:58.9]} 15... Rad8 {[%clk 0:02:30.8]} 16. Be5 {[%clk 0:02:58.2]}
16... b5 {[%clk 0:02:23.8]} 17. Bb3 {[%clk 0:02:57.8]} 17... a5 {[%clk 0:02:22]}
18. a4 {[%clk 0:02:56.9]} 18... Nd5 {[%clk 0:02:02.1]} 19. Bxg7 {[%clk
0:02:53.8]} 19... Kxg7 {[%clk 0:02:02.3]} 20. Re5 {[%clk 0:02:53.4]} 20... e6
{[%clk 0:02:01.3]} 21. axb5 {[%clk 0:02:49]} 21... cxb5 {[%clk 0:02:00]} 22.
Bxd5 {[%clk 0:02:48.9]} 22... exd5 {[%clk 0:01:59.7]} 23. Rde1 {[%clk 0:02:48]}
23... Rxe5 {[%clk 0:01:53.6]} 24. dxe5 {[%clk 0:02:43.6]} 24... Qe7 {[%clk
0:01:47.9]} 25. Qd3 {[%clk 0:02:41.6]} 25... b4 {[%clk 0:01:46.1]} 26. Qd4
{[%clk 0:02:40.2]} 26... bxc3 {[%clk 0:01:33.7]} 27. Qxc3 {[%clk 0:02:33.3]}
27... Qb4 {[%clk 0:01:30.5]} 28. Ra1 {[%clk 0:02:23.3]} 28... d4 {[%clk
0:01:22.4]} 29. Qf3 {[%clk 0:02:18.7]} 29... Qb6 {[%clk 0:01:14.7]} 30. Ra3
{[%clk 0:02:06.3]} 30... Re8 {[%clk 0:01:06.1]} 31. Qd5 {[%clk 0:01:52.3]} 31...
Qxb2 {[%clk 0:01:02.3]} 32. Rf3 {[%clk 0:01:44.6]} 32... Re7 {[%clk 0:00:44.4]}
33. Qxa5 {[%clk 0:01:38.5]} 33... d3 {[%clk 0:00:40.3]} 34. Qa6 {[%clk
0:01:25.2]} 34... d2 {[%clk 0:00:16.3]} 35. Qf6+ {[%clk 0:01:22.6]} 35... Kg8
{[%clk 0:00:16]} 36. Qxe7 {[%clk 0:01:03.2]} 36... d1=Q+ {[%clk 0:00:16.1]} 37.
Kh2 {[%clk 0:01:03.3]} 37... Qd5 {[%clk 0:00:16.4]} 38. e6 {[%clk 0:00:19.2]}
38... Qbe5+ {[%clk 0:00:15.2]} 39. Rg3 {[%clk 0:00:17]} 39... Qexe6 {[%clk
0:00:14.2]} 40. Qa7 {[%clk 0:00:16.9]} 40... Qdf5 {[%clk 0:00:10.2]} 41. Qb8+
{[%clk 0:00:16.5]} 41... Kg7 {[%clk 0:00:10.3]} 42. Qb2+ {[%clk 0:00:16.6]}
42... Qee5 {[%clk 0:00:10.3]} 43. Qa2 {[%clk 0:00:16.8]} 43... Qef6 {[%clk
0:00:08.6]} 44. Rf3 {[%clk 0:00:14.3]} 44... Q5e5+ {[%clk 0:00:09]} 45. Rg3
{[%clk 0:00:12.1]} 45... h5 {[%clk 0:00:08.7]} 46. Kh1 {[%clk 0:00:06.5]} 46...
Qe1+ {[%clk 0:00:08.6]} 47. Kh2 {[%clk 0:00:06.8]} 47... Qexf2 {[%clk
0:00:09.2]} 48. Qa8 {[%clk 0:00:04.8]} 48... h4 {[%clk 0:00:09.3]} 0-1

[Event "*** Titled Tuesday Blitz"]
[Site "Chess.com"]
[Date "2021.04.20"]
[Round "10"]
[White "Gusarov91"]
[Black "RiskyDecision"]
[Result "0-1"]
[WhiteElo "2619"]
[BlackElo "2493"]
[TimeControl "180+1"]
[EndTime "11:55:43 PDT"]
[Termination "RiskyDecision won by resignation"]

1. d4 {[%clk 0:03:00.9]} 1... f5 {[%clk 0:02:59.1]} 2. g4 {[%clk 0:03:00.9]}
2... fxg4 {[%clk 0:02:53.3]} 3. h3 {[%clk 0:03:00.3]} 3... g3 {[%clk 0:02:53.6]}
4. fxg3 {[%clk 0:02:59.8]} 4... d5 {[%clk 0:02:54]} 5. Bf4 {[%clk 0:02:59.9]}
5... e6 {[%clk 0:02:53.8]} 6. Bg2 {[%clk 0:03:00.3]} 6... Bd6 {[%clk 0:02:53.4]}
7. Qd2 {[%clk 0:03:00.9]} 7... Nf6 {[%clk 0:02:51.9]} 8. Nf3 {[%clk 0:03:00.8]}
8... Ne4 {[%clk 0:02:50.8]} 9. Qe3 {[%clk 0:03:01]} 9... Nxg3 {[%clk 0:02:46]}
10. Rg1 {[%clk 0:02:46.8]} 10... Nf5 {[%clk 0:02:41.9]} 11. Qd2 {[%clk
0:02:47.1]} 11... Nc6 {[%clk 0:02:34.8]} 12. Nc3 {[%clk 0:02:43.8]} 12... O-O
{[%clk 0:02:33.3]} 13. O-O-O {[%clk 0:02:42.5]} 13... Nfxd4 {[%clk 0:02:09.7]}
14. Bxd6 {[%clk 0:02:41.7]} 14... Nxf3 {[%clk 0:02:09.8]} 15. Bxf3 {[%clk
0:02:42.2]} 15... Qxd6 {[%clk 0:02:07.7]} 16. Kb1 {[%clk 0:02:42.9]} 16... Qf4
{[%clk 0:02:03.7]} 17. Qd3 {[%clk 0:02:41.8]} 17... Ne5 {[%clk 0:02:00.2]} 18.
Qb5 {[%clk 0:02:40.1]} 18... Bd7 {[%clk 0:01:53.2]} 19. Qc5 {[%clk 0:02:32.9]}
19... b6 {[%clk 0:01:42.2]} 20. Qxc7 {[%clk 0:02:23.4]} 20... Nxf3 {[%clk
0:01:31.3]} 21. Qxf4 {[%clk 0:02:17.3]} 21... Rxf4 {[%clk 0:01:32.2]} 22. exf3
{[%clk 0:02:17.9]} 22... Rxf3 {[%clk 0:01:30.6]} 23. h4 {[%clk 0:02:17.7]} 23...
Raf8 {[%clk 0:01:29.2]} 24. h5 {[%clk 0:02:17.5]} 24... Rh3 {[%clk 0:01:26.3]}
25. Rg5 {[%clk 0:02:16.2]} 25... Rf7 {[%clk 0:01:13.2]} 26. a4 {[%clk
0:02:02.2]} 26... Kf8 {[%clk 0:01:13]} 27. a5 {[%clk 0:02:02.2]} 27... bxa5
{[%clk 0:01:12.8]} 28. Ne2 {[%clk 0:02:01.2]} 28... Ke7 {[%clk 0:01:03.5]} 29.
Nd4 {[%clk 0:01:59]} 29... h6 {[%clk 0:00:58.4]} 30. Re5 {[%clk 0:01:56.4]}
30... Kd6 {[%clk 0:00:57.5]} 31. Rde1 {[%clk 0:01:48.7]} 31... Rf6 {[%clk
0:00:57]} 32. c3 {[%clk 0:01:41.8]} 32... a4 {[%clk 0:00:56.5]} 33. Ka2 {[%clk
0:01:38.1]} 33... Rg3 {[%clk 0:00:50.4]} 34. Ka3 {[%clk 0:01:36.2]} 34... Rg5
{[%clk 0:00:50.7]} 35. Rxg5 {[%clk 0:01:35.6]} 35... hxg5 {[%clk 0:00:51.6]} 36.
Rg1 {[%clk 0:01:36.1]} 36... e5 {[%clk 0:00:49.7]} 37. Nc2 {[%clk 0:01:35.7]}
37... g4 {[%clk 0:00:49.4]} 38. Ne3 {[%clk 0:01:33.4]} 38... Rf4 {[%clk
0:00:47]} 39. Rd1 {[%clk 0:01:33.2]} 39... Bc6 {[%clk 0:00:44.5]} 40. Rg1 {[%clk
0:01:29.1]} 40... Bd7 {[%clk 0:00:40.4]} 41. Rd1 {[%clk 0:01:29.2]} 41... Be6
{[%clk 0:00:39.8]} 42. Rh1 {[%clk 0:01:25.5]} 42... Re4 {[%clk 0:00:39]} 43. Nc2
{[%clk 0:01:22.2]} 43... g3 {[%clk 0:00:38]} 44. Rg1 {[%clk 0:01:22.3]} 44...
Rg4 {[%clk 0:00:37.6]} 45. Ne3 {[%clk 0:01:21.9]} 45... Rg5 {[%clk 0:00:37.7]}
46. Kxa4 {[%clk 0:01:21.2]} 46... d4 {[%clk 0:00:37.6]} 47. cxd4 {[%clk
0:01:21.4]} 47... exd4 {[%clk 0:00:38.5]} 48. Nc2 {[%clk 0:01:22]} 48... Kd5
{[%clk 0:00:34.5]} 49. Kb4 {[%clk 0:01:16.5]} 49... g2 {[%clk 0:00:34]} 50. Ne1
{[%clk 0:01:16.2]} 50... Bh3 {[%clk 0:00:33.6]} 51. Nf3 {[%clk 0:01:16.4]} 51...
Rg3 {[%clk 0:00:31.6]} 52. Ne1 {[%clk 0:01:12.3]} 52... Ke4 {[%clk 0:00:31.1]}
53. Kc4 {[%clk 0:01:12.1]} 53... Ke3 {[%clk 0:00:29.3]} 54. h6 {[%clk
0:01:01.2]} 54... gxh6 {[%clk 0:00:29.1]} 55. Nc2+ {[%clk 0:01:01.6]} 55... Kf2
{[%clk 0:00:29.1]} 56. Rd1 {[%clk 0:00:59.9]} 56... g1=Q {[%clk 0:00:24.2]} 57.
Rxg1 {[%clk 0:00:59.8]} 57... Kxg1 {[%clk 0:00:22.9]} 58. Nxd4 {[%clk
0:01:00.7]} 58... Rg4 {[%clk 0:00:20.4]} 59. Kc3 {[%clk 0:01:00.6]} 59... Rxd4
{[%clk 0:00:18.2]} 60. Kxd4 {[%clk 0:01:01.5]} 60... h5 {[%clk 0:00:17.9]} 61.
Ke3 {[%clk 0:01:02]} 61... Kg2 {[%clk 0:00:16.9]} 62. Kf4 {[%clk 0:01:02.9]}
62... Bg4 {[%clk 0:00:16.7]} 63. Kg5 {[%clk 0:01:03.4]} 63... Kg3 {[%clk
0:00:16.6]} 64. b4 {[%clk 0:01:04.3]} 64... h4 {[%clk 0:00:16.4]} 65. b5 {[%clk
0:01:05.2]} 65... h3 {[%clk 0:00:16.5]} 66. b6 {[%clk 0:01:05.8]} 66... axb6
{[%clk 0:00:17.4]} 67. Kf6 {[%clk 0:01:05.7]} 67... h2 {[%clk 0:00:17.3]} 68.
Ke5 {[%clk 0:01:06.6]} 0-1

[Event "*** Titled Tuesday Blitz"]
[Site "Chess.com"]
[Date "2021.04.20"]
[Round "10"]
[White "Skat2704"]
[Black "SilviusTiberius"]
[Result "1-0"]
[WhiteElo "2677"]
[BlackElo "2576"]
[TimeControl "180+1"]
[EndTime "11:55:44 PDT"]
[Termination "Skat2704 won by resignation"]

1. d4 {[%clk 0:03:00.9]} 1... Nf6 {[%clk 0:02:59.8]} 2. c4 {[%clk 0:02:59.8]}
2... e6 {[%clk 0:02:59.8]} 3. Nf3 {[%clk 0:02:58.6]} 3... d5 {[%clk 0:03:00.7]}
4. Nc3 {[%clk 0:02:56.9]} 4... Be7 {[%clk 0:03:01.1]} 5. Bg5 {[%clk 0:02:55]}
5... h6 {[%clk 0:03:01.4]} 6. Bh4 {[%clk 0:02:54.6]} 6... O-O {[%clk 0:03:01.8]}
7. e3 {[%clk 0:02:53.6]} 7... b6 {[%clk 0:03:02.2]} 8. cxd5 {[%clk 0:02:52.4]}
8... Nxd5 {[%clk 0:03:01.8]} 9. Bg3 {[%clk 0:02:51.6]} 9... Bb7 {[%clk 0:02:57]}
10. Bd3 {[%clk 0:02:50.3]} 10... c5 {[%clk 0:02:52.2]} 11. O-O {[%clk
0:02:48.8]} 11... cxd4 {[%clk 0:02:51.9]} 12. exd4 {[%clk 0:02:47.6]} 12... Nd7
{[%clk 0:02:52.3]} 13. Rc1 {[%clk 0:02:46.2]} 13... N7f6 {[%clk 0:02:47.1]} 14.
Bb1 {[%clk 0:02:43.8]} 14... Nxc3 {[%clk 0:02:40.8]} 15. Rxc3 {[%clk 0:02:41.4]}
15... Rc8 {[%clk 0:02:31.9]} 16. Be5 {[%clk 0:02:32.1]} 16... Rxc3 {[%clk
0:02:26.5]} 17. bxc3 {[%clk 0:02:31.9]} 17... Qd5 {[%clk 0:02:19.6]} 18. Re1
{[%clk 0:02:27.5]} 18... Rc8 {[%clk 0:02:18.7]} 19. Bxf6 {[%clk 0:02:17.9]}
19... Bxf6 {[%clk 0:02:16.6]} 20. Be4 {[%clk 0:02:18.2]} 20... Qd7 {[%clk
0:02:16.8]} 21. Bxb7 {[%clk 0:02:17.9]} 21... Qxb7 {[%clk 0:02:17.7]} 22. Qd3
{[%clk 0:02:14.4]} 22... Qd5 {[%clk 0:02:13.7]} 23. Re2 {[%clk 0:02:10.2]} 23...
b5 {[%clk 0:02:04.4]} 24. h3 {[%clk 0:02:05.3]} 24... Rc4 {[%clk 0:01:56.7]} 25.
Ne5 {[%clk 0:02:02.3]} 25... Ra4 {[%clk 0:01:52.4]} 26. Ng4 {[%clk 0:01:58.3]}
26... Rxa2 {[%clk 0:01:35.7]} 27. Rxa2 {[%clk 0:01:55]} 27... Qxa2 {[%clk
0:01:36.6]} 28. Qxb5 {[%clk 0:01:41]} 28... Qa1+ {[%clk 0:00:45.2]} 29. Kh2
{[%clk 0:01:39.9]} 29... Qxc3 {[%clk 0:00:45.4]} 30. Qe8+ {[%clk 0:01:37.7]}
30... Kh7 {[%clk 0:00:45.6]} 31. Nxf6+ {[%clk 0:01:36.8]} 31... gxf6 {[%clk
0:00:45.2]} 32. Qxf7+ {[%clk 0:01:35.6]} 32... Kh8 {[%clk 0:00:45.3]} 33. Qxf6+
{[%clk 0:01:35.5]} 33... Kh7 {[%clk 0:00:44.5]} 34. Qe7+ {[%clk 0:01:34.3]}
34... Kh8 {[%clk 0:00:44]} 35. Qxa7 {[%clk 0:01:33.4]} 35... Qd2 {[%clk
0:00:39.7]} 36. Qa8+ {[%clk 0:01:29.6]} 36... Kg7 {[%clk 0:00:38]} 37. Qb7+
{[%clk 0:01:25.9]} 37... Kg8 {[%clk 0:00:33.7]} 38. Qc8+ {[%clk 0:01:21.9]}
38... Kf7 {[%clk 0:00:33.3]} 39. Qd7+ {[%clk 0:01:20]} 39... Kf6 {[%clk
0:00:31.8]} 40. Qd6 {[%clk 0:01:16.8]} 40... Kf7 {[%clk 0:00:26.5]} 41. f3
{[%clk 0:01:13.4]} 41... h5 {[%clk 0:00:23.8]} 42. Qe5 {[%clk 0:01:10.1]} 42...
h4 {[%clk 0:00:20.6]} 43. Qh5+ {[%clk 0:01:07.8]} 43... Kg7 {[%clk 0:00:20]} 44.
Qg4+ {[%clk 0:01:05.5]} 44... Kf8 {[%clk 0:00:18.9]} 45. Qxh4 {[%clk 0:00:59.8]}
45... e5 {[%clk 0:00:18.3]} 46. Qf6+ {[%clk 0:00:56.9]} 46... Kg8 {[%clk
0:00:18.1]} 47. dxe5 {[%clk 0:00:54.1]} 47... Kh7 {[%clk 0:00:17.7]} 48. e6
{[%clk 0:00:49.4]} 48... Qd6+ {[%clk 0:00:13.5]} 49. f4 {[%clk 0:00:47.4]} 49...
Qd2 {[%clk 0:00:06.4]} 50. e7 {[%clk 0:00:45.3]} 50... Qe1 {[%clk 0:00:04.7]}
51. f5 {[%clk 0:00:31.1]} 51... Qe4 {[%clk 0:00:03.3]} 52. Qg6+ {[%clk
0:00:28.7]} 1-0

[Event "*** Titled Tuesday Blitz"]
[Site "Chess.com"]
[Date "2021.04.20"]
[Round "10"]
[White "ZAbdumalik"]
[Black "IANOV0007"]
[Result "0-1"]
[WhiteElo "2606"]
[BlackElo "2480"]
[TimeControl "180+1"]
[EndTime "11:55:46 PDT"]
[Termination "IANOV0007 won by resignation"]

1. e4 {[%clk 0:03:00.9]} 1... d6 {[%clk 0:02:59.6]} 2. d4 {[%clk 0:03:00.4]}
2... Nf6 {[%clk 0:02:59.1]} 3. Nc3 {[%clk 0:03:00.2]} 3... c6 {[%clk 0:02:58.7]}
4. Nf3 {[%clk 0:02:58.9]} 4... Bg4 {[%clk 0:02:52.9]} 5. h3 {[%clk 0:02:58.4]}
5... Bh5 {[%clk 0:02:49.5]} 6. a4 {[%clk 0:02:57.7]} 6... e6 {[%clk 0:02:47.8]}
7. Be2 {[%clk 0:02:53.6]} 7... d5 {[%clk 0:02:46.8]} 8. exd5 {[%clk 0:02:50.8]}
8... cxd5 {[%clk 0:02:45.1]} 9. a5 {[%clk 0:02:44.6]} 9... Bxf3 {[%clk
0:02:41.5]} 10. Bxf3 {[%clk 0:02:43.6]} 10... Nc6 {[%clk 0:02:41.1]} 11. a6
{[%clk 0:02:43.1]} 11... b6 {[%clk 0:02:39.1]} 12. O-O {[%clk 0:02:42.9]} 12...
Be7 {[%clk 0:02:38]} 13. Ne2 {[%clk 0:02:39.3]} 13... O-O {[%clk 0:02:36.2]} 14.
c3 {[%clk 0:02:39.5]} 14... Rc8 {[%clk 0:02:35.6]} 15. Nf4 {[%clk 0:02:37.4]}
15... Na5 {[%clk 0:02:33.4]} 16. Be2 {[%clk 0:02:35.3]} 16... Nc4 {[%clk
0:02:31.3]} 17. Qd3 {[%clk 0:02:32.3]} 17... Ne4 {[%clk 0:02:24]} 18. Nh5 {[%clk
0:02:18.6]} 18... g6 {[%clk 0:02:16.4]} 19. Ng3 {[%clk 0:02:18]} 19... Ned6
{[%clk 0:02:02.6]} 20. Bh6 {[%clk 0:02:16.4]} 20... Re8 {[%clk 0:02:02.4]} 21.
b3 {[%clk 0:02:16.2]} 21... Na5 {[%clk 0:02:00.9]} 22. Rab1 {[%clk 0:02:16]}
22... Bg5 {[%clk 0:01:59]} 23. Bxg5 {[%clk 0:02:11.4]} 23... Qxg5 {[%clk
0:01:58.8]} 24. f4 {[%clk 0:02:09]} 24... Qe7 {[%clk 0:01:52.9]} 25. Bf3 {[%clk
0:02:06.1]} 25... Qc7 {[%clk 0:01:46.1]} 26. Rfc1 {[%clk 0:02:05.1]} 26... Red8
{[%clk 0:01:40]} 27. Ne2 {[%clk 0:02:04]} 27... Qd7 {[%clk 0:01:37.1]} 28. Kf2
{[%clk 0:01:32.3]} 28... Qb5 {[%clk 0:01:32.1]} 29. Qxb5 {[%clk 0:01:28]} 29...
Nxb5 {[%clk 0:01:31]} 30. Ke3 {[%clk 0:01:26.4]} 30... Nc7 {[%clk 0:01:28.5]}
31. b4 {[%clk 0:01:23.1]} 31... Nc4+ {[%clk 0:01:26]} 32. Kd3 {[%clk 0:01:24]}
32... Nb5 {[%clk 0:01:20.9]} 33. g4 {[%clk 0:01:19.1]} 33... Ncd6 {[%clk
0:01:17.9]} 34. h4 {[%clk 0:01:16.2]} 34... h6 {[%clk 0:01:14.9]} 35. Ng3 {[%clk
0:01:06.6]} 35... Rc7 {[%clk 0:01:06.3]} 36. f5 {[%clk 0:01:05.1]} 36... Rdc8
{[%clk 0:01:00.6]} 37. Rb3 {[%clk 0:00:55.9]} 37... Rc4 {[%clk 0:00:53.6]} 38.
Kd2 {[%clk 0:00:51.5]} 38... Nxd4 {[%clk 0:00:50.3]} 39. cxd4 {[%clk 0:00:36.4]}
39... Rxc1 {[%clk 0:00:49.5]} 40. fxg6 {[%clk 0:00:36.4]} 40... fxg6 {[%clk
0:00:46.7]} 41. Ne2 {[%clk 0:00:36.4]} 41... R1c2+ {[%clk 0:00:39.7]} 42. Kd3
{[%clk 0:00:34.4]} 42... Ra2 {[%clk 0:00:37.8]} 43. Nf4 {[%clk 0:00:33.9]} 43...
Kf7 {[%clk 0:00:36.2]} 44. h5 {[%clk 0:00:30.8]} 44... g5 {[%clk 0:00:35.1]} 45.
Ng6 {[%clk 0:00:31.1]} 45... Nc4 {[%clk 0:00:32.7]} 46. Ne5+ {[%clk 0:00:29.4]}
46... Nxe5+ {[%clk 0:00:31.7]} 47. dxe5 {[%clk 0:00:30.3]} 47... Rxa6 {[%clk
0:00:31.3]} 48. Bd1 {[%clk 0:00:26.1]} 48... Rc1 {[%clk 0:00:30.2]} 49. Kd2
{[%clk 0:00:25.8]} 49... Rc4 {[%clk 0:00:28.7]} 50. Be2 {[%clk 0:00:24.5]} 50...
Ra2+ {[%clk 0:00:25.3]} 51. Kd3 {[%clk 0:00:24.4]} 51... Re4 {[%clk 0:00:24.6]}
52. Bf3 {[%clk 0:00:23.8]} 52... Rxe5 {[%clk 0:00:24.3]} 53. Rc3 {[%clk
0:00:23.3]} 53... Kf6 {[%clk 0:00:23.1]} 54. Rc8 {[%clk 0:00:22.9]} 54... Ra3+
{[%clk 0:00:20.5]} 55. Kd4 {[%clk 0:00:20.4]} 55... Re1 {[%clk 0:00:20.1]} 56.
Rf8+ {[%clk 0:00:18.9]} 56... Ke7 {[%clk 0:00:19.9]} 0-1

[Event "*** Titled Tuesday Blitz"]
[Site "Chess.com"]
[Date "2021.04.20"]
[Round "10"]
[White "bazar-wokzal"]
[Black "eduardoperalta"]
[Result "0-1"]
[WhiteElo "2675"]
[BlackElo "2509"]
[TimeControl "180+1"]
[EndTime "11:55:49 PDT"]
[Termination "eduardoperalta won by resignation"]

1. e4 {[%clk 0:03:00.9]} 1... c5 {[%clk 0:02:59.8]} 2. c3 {[%clk 0:03:00.3]}
2... e5 {[%clk 0:02:58.7]} 3. Nf3 {[%clk 0:02:59.9]} 3... Nc6 {[%clk 0:02:59.2]}
4. Bc4 {[%clk 0:03:00.2]} 4... Be7 {[%clk 0:02:51.5]} 5. O-O {[%clk 0:02:43.1]}
5... Nf6 {[%clk 0:02:50.3]} 6. d4 {[%clk 0:02:34.2]} 6... d6 {[%clk 0:02:28.4]}
7. Ng5 {[%clk 0:02:33]} 7... O-O {[%clk 0:02:27.2]} 8. Qb3 {[%clk 0:01:59.8]}
8... Na5 {[%clk 0:02:10.7]} 9. Bxf7+ {[%clk 0:01:56]} 9... Kh8 {[%clk
0:02:09.8]} 10. Qd1 {[%clk 0:01:51.2]} 10... Nxe4 {[%clk 0:01:19.9]} 11. Nxe4
{[%clk 0:01:03.5]} 11... Rxf7 {[%clk 0:01:19]} 12. dxe5 {[%clk 0:01:02.3]} 12...
dxe5 {[%clk 0:01:17.4]} 13. Qxd8+ {[%clk 0:01:01.4]} 13... Bxd8 {[%clk 0:01:17]}
14. Nxc5 {[%clk 0:00:59.8]} 14... Bb6 {[%clk 0:01:14.3]} 15. Ne4 {[%clk
0:00:58.2]} 15... Bg4 {[%clk 0:01:00.1]} 16. h3 {[%clk 0:00:50.2]} 16... Be2
{[%clk 0:00:58.3]} 17. Re1 {[%clk 0:00:50.3]} 17... Bd3 {[%clk 0:00:57.3]} 18.
Nbd2 {[%clk 0:00:47.1]} 18... Rd8 {[%clk 0:00:52.5]} 19. Nf3 {[%clk 0:00:33]}
19... Nc6 {[%clk 0:00:47.8]} 20. Bg5 {[%clk 0:00:28.4]} 20... Rdd7 {[%clk
0:00:42.1]} 21. Rad1 {[%clk 0:00:26.6]} 21... h6 {[%clk 0:00:41.2]} 22. Bh4
{[%clk 0:00:27]} 22... a6 {[%clk 0:00:25.7]} 23. Bg3 {[%clk 0:00:27.2]} 23...
Rfe7 {[%clk 0:00:21.1]} 24. b4 {[%clk 0:00:25.9]} 24... Kg8 {[%clk 0:00:16.9]}
25. Nc5 {[%clk 0:00:25.4]} 25... Bxc5 {[%clk 0:00:16.5]} 26. bxc5 {[%clk
0:00:26.3]} 26... e4 {[%clk 0:00:16.7]} 27. Nd4 {[%clk 0:00:26.6]} 27... Nxd4
{[%clk 0:00:15.8]} 28. cxd4 {[%clk 0:00:20.4]} 28... Rxd4 {[%clk 0:00:15.3]} 29.
f3 {[%clk 0:00:20.6]} 29... e3 {[%clk 0:00:13.1]} 30. Rc1 {[%clk 0:00:16.3]}
30... e2 {[%clk 0:00:09.2]} 31. c6 {[%clk 0:00:14.6]} 31... bxc6 {[%clk
0:00:08.5]} 32. Rxc6 {[%clk 0:00:14.8]} 32... Bb5 {[%clk 0:00:09]} 33. Rc8+
{[%clk 0:00:12]} 33... Kh7 {[%clk 0:00:08.7]} 34. Bf2 {[%clk 0:00:12.1]} 34...
Rd1 {[%clk 0:00:08.3]} 35. g4 {[%clk 0:00:11.2]} 35... Rf7 {[%clk 0:00:07.4]}
36. Kg2 {[%clk 0:00:11.3]} 36... Rfd7 {[%clk 0:00:06.3]} 37. Rb8 {[%clk
0:00:10.5]} 37... R7d2 {[%clk 0:00:05.7]} 38. a3 {[%clk 0:00:09.7]} 38... Ra2
{[%clk 0:00:03.9]} 39. h4 {[%clk 0:00:07.6]} 39... Raa1 {[%clk 0:00:04.1]} 40.
Rxe2 {[%clk 0:00:04.1]} 40... Bxe2 {[%clk 0:00:03.3]} 41. g5 {[%clk 0:00:05]}
41... hxg5 {[%clk 0:00:02.1]} 42. hxg5 {[%clk 0:00:05.5]} 42... Bd3 {[%clk
0:00:02.6]} 43. f4 {[%clk 0:00:04.8]} 43... Rxa3 {[%clk 0:00:02.8]} 44. Rb7
{[%clk 0:00:03.2]} 44... Be4+ {[%clk 0:00:03.1]} 45. Kh2 {[%clk 0:00:03.6]}
45... Bxb7 {[%clk 0:00:04]} 0-1